fUSD/lending_fUSD_20260620
["ID","MTS","AMOUNT","RATE_DAILY","PERIOD"]
[425800444,1781905984000,-151.0,0.00016134,2]
[425800445,1781906038000,-150.0,0.00016134,2]
[425800446,1781906092000,-153.0,0.00016134,2]
[425800448,1781906145000,-151.0,0.00016134,2]
[425800452,1781906199000,-151.0,0.00016134,2]
[425800453,1781906253000,-150.0,0.00016134,2]
[425800454,1781906306000,-500.0,0.00016133,2]
[425800457,1781906554000,-152.0,0.00016131,2]
[425800461,1781906607000,-151.0,0.00016131,2]
[425800463,1781906634000,250.0,0.00014,2]
[425800464,1781906661000,-150.0,0.00016131,2]
[425800465,1781906714000,-300.0,0.0001613,2]
[425800466,1781906768000,-151.0,0.0001613,2]
[425800468,1781906821000,-200.0,0.00015666,2]
[425800469,1781906876000,-500.0,0.00015552,3]
[425800470,1781906928000,-169.59,0.00015666,2]
[425800471,1781906982000,-785.49601378,0.00015715,2]
[425800472,1781906996000,-214.50398622,0.00015715,2]
[425800477,1781907031000,-2159.51795982,0.00015634,2]
[425800476,1781907031000,-340.48204018,0.00015634,2]
[425800478,1781907031000,-208.75848983,0.00016127,2]
[425800504,1781907032000,-319.0,0.00016131,2]
[425800511,1781907032000,-310.0,0.00016131,2]
[425800506,1781907032000,-151.0,0.00016131,2]
[425800509,1781907032000,-317.0,0.00016131,2]
[425800513,1781907032000,-296.0,0.00016131,2]
[425800517,1781907032000,-151.0,0.00016131,2]
[425800515,1781907032000,-150.0,0.00016131,2]
[425800519,1781907032000,-150.0,0.00016131,2]
[425800524,1781907032000,-153.0,0.00016131,2]
[425800534,1781907032000,-150.0,0.00016132,2]
[425800533,1781907032000,-152.0,0.00016132,2]
[425800528,1781907032000,-152.0,0.00016131,2]
[425800522,1781907032000,-151.0,0.00016131,2]
[425800526,1781907032000,-151.0,0.00016131,2]
[425800529,1781907032000,-151.0,0.00016131,2]
[425800531,1781907032000,-160.78665199,0.00016131,7]
[425800535,1781907032000,-126.64598864,0.00016132,2]
[425800537,1781907032000,-151.0,0.00016132,2]
[425800500,1781907032000,-151.0,0.00016131,2]
[425800496,1781907032000,-150.0,0.00016131,2]
[425800498,1781907032000,-314.0,0.00016131,2]
[425800499,1781907032000,-312.0,0.00016131,2]
[425800480,1781907032000,-230.48826645,0.00016127,2]
[425800483,1781907032000,-595.45562062,0.00016127,2]
[425800482,1781907032000,-175.40945491,0.00016127,2]
[425800484,1781907032000,-300.0,0.00016127,2]
[425800479,1781907032000,-500.0,0.00016127,2]
[425800481,1781907032000,-273.7635612,0.00016127,2]
[425800487,1781907032000,-500.0,0.00016128,2]
[425800485,1781907032000,-500.0,0.00016128,2]
[425800536,1781907032000,-23.35401136,0.00016132,2]
[425800488,1781907032000,-500.0,0.00016128,2]
[425800494,1781907032000,-151.0,0.00016131,2]
[425800490,1781907032000,-150.0,0.0001613,2]
[425800489,1781907032000,-321.76110828,0.00016128,2]
[425800492,1781907032000,-152.0,0.0001613,2]
[425800491,1781907032000,-150.0,0.0001613,2]
[425800493,1781907032000,-600.0,0.0001613,2]
[425800495,1781907032000,-152.0,0.00016131,2]
[425800497,1781907032000,-311.0,0.00016131,2]
[425800486,1781907032000,-500.0,0.00016128,2]
[425800542,1781907032000,-16.70676734,0.00016133,2]
[425800502,1781907032000,-320.0,0.00016131,2]
[425800538,1781907032000,-250.0,0.00016132,2]
[425800568,1781907032000,-876.30555547,0.00016487,2]
[425800567,1781907032000,-265.0,0.00016452,2]
[425800563,1781907032000,-160.0,0.00016135,2]
[425800562,1781907032000,-496.5,0.00016135,2]
[425800566,1781907032000,-302.29604783,0.00016438,2]
[425800565,1781907032000,-265.0,0.00016291,2]
[425800569,1781907032000,-283.201689,0.00016488,2]
[425800571,1781907032000,-4844.13415887,0.00016488,2]
[425800570,1781907032000,-1589.39584113,0.00016488,2]
[425800572,1781907032000,-260.99,0.00016488,2]
[425800574,1781907032000,-12533.4972844,0.00016493,2]
[425800573,1781907032000,-9541.4,0.00016488,2]
[425800577,1781907032000,-3837.15116442,0.00016497,2]
[425800575,1781907032000,-33601.42894239,0.00016497,2]
[425800576,1781907032000,-1466.16851797,0.00016497,2]
[425800580,1781907032000,-1259.46314763,0.00016497,2]
[425800544,1781907032000,-151.0,0.00016133,2]
[425800579,1781907032000,-3157.93214859,0.00016497,2]
[425800581,1781907032000,-4428.11774623,0.00016497,2]
[425800564,1781907032000,-2484.0684,0.00016191,2]
[425800557,1781907032000,-150.0,0.00016134,2]
[425800578,1781907032000,-616.14430244,0.00016497,2]
[425800561,1781907032000,-151.0,0.00016134,2]
[425800560,1781907032000,-150.0,0.00016134,2]
[425800540,1781907032000,-151.0,0.00016132,2]
[425800541,1781907032000,-133.29323266,0.00016133,2]
[425800543,1781907032000,-151.0,0.00016133,2]
[425800548,1781907032000,-153.0,0.00016134,2]
[425800545,1781907032000,-150.0,0.00016133,2]
[425800547,1781907032000,-152.0,0.00016134,2]
[425800546,1781907032000,-151.0,0.00016134,2]
[425800549,1781907032000,-152.0,0.00016134,2]
[425800539,1781907032000,-150.0,0.00016132,2]
[425800551,1781907032000,-151.0,0.00016134,2]
[425800550,1781907032000,-151.0,0.00016134,2]
[425800556,1781907032000,-151.0,0.00016134,2]
[425800553,1781907032000,-150.0,0.00016134,2]
[425800555,1781907032000,-151.0,0.00016134,2]
[425800554,1781907032000,-152.0,0.00016134,2]
[425800559,1781907032000,-151.0,0.00016134,2]
[425800552,1781907032000,-151.0,0.00016134,2]
[425800558,1781907032000,-150.0,0.00016134,2]
[425800606,1781907038000,-208.98352537,0.0001774,2]
[425800608,1781907038000,-300.0,0.0001774,2]
[425800605,1781907038000,-236.60196707,0.0001774,2]
[425800609,1781907038000,-500.0,0.0001774,2]
[425800610,1781907038000,-300.0,0.0001774,2]
[425800603,1781907038000,-166.66,0.00017737,2]
[425800612,1781907038000,-193.0,0.00017743,2]
[425800618,1781907038000,-150.0,0.00017748,2]
[425800613,1781907038000,-600.0,0.00017743,2]
[425800617,1781907038000,-151.0,0.00017748,2]
[425800614,1781907038000,-373.79143121,0.00017743,2]
[425800615,1781907038000,-250.0,0.00017743,2]
[425800619,1781907038000,-166.66,0.00018102,2]
[425800616,1781907038000,-151.0,0.00017748,2]
[425800604,1781907038000,-195.0,0.0001774,2]
[425800626,1781907038000,-154.4,0.0001841,2]
[425800611,1781907038000,-274.0,0.00017742,2]
[425800602,1781907038000,-3719.9293581,0.00017648,2]
[425800593,1781907038000,-165.29,0.00016891,2]
[425800601,1781907038000,-1500.0,0.00017633,2]
[425800624,1781907038000,-4600.51,0.00018356,2]
[425800585,1781907038000,-81051.73553613,0.00016497,2]
[425800586,1781907038000,-3182.4684473,0.00016504,2]
[425800588,1781907038000,-1115.7139012,0.00016513,2]
[425800589,1781907038000,-265.0,0.00016613,2]
[425800587,1781907038000,-148806.7860966,0.00016508,2]
[425800590,1781907038000,-265.0,0.00016775,2]
[425800607,1781907038000,-250.0,0.0001774,2]
[425800592,1781907038000,-174.45,0.00016891,2]
[425800594,1781907038000,-265.0,0.00016936,2]
[425800596,1781907038000,-265.0,0.00017259,2]
[425800598,1781907038000,-500.0,0.00017372,2]
[425800597,1781907038000,-166.66,0.00017371,2]
[425800595,1781907038000,-265.0,0.00017097,2]
[425800600,1781907038000,-265.0,0.00017581,2]
[425800599,1781907038000,-265.0,0.0001742,2]
[425800591,1781907038000,-161.53,0.00016838,2]
[425800622,1781907038000,-1555.5,0.00018181,2]
[425800660,1781907038000,-705.0,0.0002,2]
[425800627,1781907038000,-166.66,0.00018468,2]
[425800673,1781907038000,-364.72003192,0.00020292,2]
[425800675,1781907038000,-1984.97925614,0.00020326,7]
[425800677,1781907038000,-1798.80895522,0.00020373,2]
[425800669,1781907038000,-414.0,0.0002,2]
[425800671,1781907038000,-11094.97,0.0002,2]
[425800679,1781907038000,-154.4,0.00020381,2]
[425800681,1781907038000,-378.2146731,0.00020576,2]
[425800684,1781907038000,-200.0,0.0002065,2]
[425800686,1781907038000,-361.0,0.00020821,2]
[425800702,1781907038000,-314.0,0.00021,2]
[425800700,1781907038000,-226.0,0.00021,2]
[425800698,1781907038000,-314.0,0.00021,2]
[425800688,1781907038000,-500.0,0.00020877,2]
[425800690,1781907038000,-9749.95,0.000209,2]
[425800692,1781907038000,-1865.36488656,0.00020921,2]
[425800694,1781907038000,-417.0,0.00021,2]
[425800628,1781907038000,-1613.0535,0.00018729,2]
[425800667,1781907038000,-314.0,0.0002,2]
[425800664,1781907038000,-226.0,0.0002,2]
[425800696,1781907038000,-705.0,0.00021,2]
[425800658,1781907038000,-417.0,0.0002,2]
[425800630,1781907038000,-198.3,0.00018984,2]
[425800662,1781907038000,-314.0,0.0002,2]
[425800629,1781907038000,-166.66,0.00018834,2]
[425800631,1781907038000,-174.45,0.00019002,2]
[425800633,1781907038000,-1672.7364795,0.00019277,2]
[425800634,1781907038000,-1115.71390116,0.00019283,2]
[425800638,1781907038000,-778.39874766,0.000194,2]
[425800635,1781907038000,-3426.06944231,0.00019307,2]
[425800632,1781907038000,-166.66,0.00019199,2]
[425800650,1781907038000,-360.27400888,0.00019826,2]
[425800653,1781907038000,-253.1,0.00019951,2]
[425800642,1781907038000,-172.03932721,0.00019426,2]
[425800644,1781907038000,-360.0,0.00019452,2]
[425800647,1781907038000,-234.0,0.00019452,2]
[425800655,1781907038000,-159.143329,0.0002,2]
[425800648,1781907038000,-1734.62772924,0.00019825,2]
[425800640,1781907038000,-3719.9293581,0.0001942,2]
[425800769,1781907039000,-200.0,0.00022565,2]
[425800791,1781907039000,-151.0,0.00022565,2]
[425800775,1781907039000,-151.0,0.00022565,2]
[425800773,1781907039000,-151.0,0.00022565,2]
[425800764,1781907039000,-151.0,0.00022565,2]
[425800763,1781907039000,-28492.84453341,0.000225,2]
[425800767,1781907039000,-151.0,0.00022565,2]
[425800760,1781907039000,-207.90795026,0.00022407,2]
[425800777,1781907039000,-2080.17592889,0.00022565,2]
[425800771,1781907039000,-151.0,0.00022565,2]
[425800790,1781907039000,-500.0,0.00022565,2]
[425800799,1781907039000,-151.0,0.00022565,2]
[425800783,1781907039000,-151.0,0.00022565,2]
[425800787,1781907039000,-151.0,0.00022565,2]
[425800786,1781907039000,-151.0,0.00022565,2]
[425800782,1781907039000,-151.0,0.00022565,2]
[425800797,1781907039000,-151.0,0.00022565,2]
[425800796,1781907039000,-500.0,0.00022565,2]
[425800794,1781907039000,-151.0,0.00022565,2]
[425800801,1781907039000,-500.0,0.00022565,2]
[425800803,1781907039000,-151.0,0.00022565,2]
[425800762,1781907039000,-415.68,0.00022466,2]
[425800807,1781907039000,-151.0,0.00022565,2]
[425800779,1781907039000,-151.0,0.00022565,2]
[425800765,1781907039000,-151.0,0.00022565,2]
[425800721,1781907039000,-7032.03,0.00021623,2]
[425800758,1781907039000,-154.4,0.00022353,2]
[425800805,1781907039000,-500.0,0.00022565,2]
[425800706,1781907039000,-500.0,0.00021001,2]
[425800704,1781907039000,-414.0,0.00021,2]
[425800708,1781907039000,-161.53,0.00021048,2]
[425800711,1781907039000,-174.45,0.00021114,2]
[425800715,1781907039000,-474.0,0.00021315,2]
[425800713,1781907039000,-3719.9293581,0.00021193,2]
[425800719,1781907039000,-342.99,0.00021608,2]
[425800717,1781907039000,-1934.38338736,0.00021469,2]
[425800725,1781907039000,-5000.0,0.00021918,2]
[425800723,1781907039000,-177.29,0.00021743,2]
[425800734,1781907039000,-705.0,0.00022,2]
[425800729,1781907039000,-300.0,0.00022,2]
[425800727,1781907039000,-1901.29336071,0.00022,2]
[425800732,1781907039000,-417.0,0.00022,2]
[425800736,1781907039000,-314.0,0.00022,2]
[425800747,1781907039000,-2005.9555727,0.00022017,2]
[425800751,1781907039000,-244.84411851,0.0002211,2]
[425800738,1781907039000,-226.0,0.00022,2]
[425800749,1781907039000,-274.226415,0.0002205,14]
[425800742,1781907039000,-414.0,0.00022,2]
[425800744,1781907039000,-2319.75,0.00022,2]
[425800740,1781907039000,-314.0,0.00022,2]
[425800753,1781907039000,-215.46746799,0.0002211,30]
[425800755,1781907039000,-163.2,0.00022243,2]
[425800761,1781907039000,-207.90795025,0.00022407,2]
[425800806,1781907039000,-151.0,0.00022565,2]
[425800804,1781907039000,-151.0,0.00022565,2]
[425800809,1781907039000,-151.0,0.00022565,2]
[425800835,1781907039000,-414.0,0.00023,2]
[425800842,1781907039000,-174.45,0.00023225,2]
[425800837,1781907039000,-151.0,0.00023113,2]
[425800840,1781907039000,-179.38288373,0.00023164,2]
[425800845,1781907039000,-5238.3916624,0.00023326,7]
[425800844,1781907039000,-250.0,0.00023288,2]
[425800843,1781907039000,-475.22,0.00023245,7]
[425800846,1781907039000,-169.59,0.00023499,2]
[425800849,1781907039000,-151.0,0.00023661,2]
[425800848,1781907039000,-151.0,0.0002366,2]
[425800852,1781907039000,-500.0,0.00023836,2]
[425800841,1781907039000,-150.84406616,0.00023164,2]
[425800851,1781907039000,-2236.95670847,0.00023661,2]
[425800853,1781907039000,-500.0,0.00023836,2]
[425800855,1781907039000,-154.56,0.00023937,7]
[425800854,1781907039000,-154.56,0.00023936,2]
[425800857,1781907039000,-705.0,0.00024,2]
[425800861,1781907039000,-414.0,0.00024,2]
[425800860,1781907039000,-314.0,0.00024,2]
[425800859,1781907039000,-226.0,0.00024,2]
[425800856,1781907039000,-417.0,0.00024,2]
[425800858,1781907039000,-314.0,0.00024,2]
[425800862,1781907039000,-163.2,0.00024078,2]
[425800808,1781907039000,-500.0,0.00022565,2]
[425800847,1781907039000,-151.0,0.0002366,2]
[425800839,1781907039000,-2157.14243826,0.00023113,2]
[425800850,1781907039000,-200.0,0.00023661,2]
[425800836,1781907039000,-507.0,0.00023,2]
[425800812,1781907039000,-151.0,0.00022565,2]
[425800838,1781907039000,-200.0,0.00023113,2]
[425800810,1781907039000,-151.0,0.00022565,2]
[425800814,1781907039000,-500.0,0.00022565,2]
[425800818,1781907039000,-151.0,0.00022565,2]
[425800815,1781907039000,-151.0,0.00022565,2]
[425800813,1781907039000,-151.0,0.00022565,2]
[425800819,1781907039000,-500.0,0.00022565,2]
[425800817,1781907039000,-151.0,0.00022565,2]
[425800816,1781907039000,-500.0,0.00022565,2]
[425800820,1781907039000,-151.0,0.00022565,2]
[425800822,1781907039000,-500.0,0.00022565,2]
[425800823,1781907039000,-151.0,0.00022565,2]
[425800811,1781907039000,-500.0,0.00022565,2]
[425800824,1781907039000,-151.0,0.00022565,2]
[425800827,1781907039000,-151.0,0.00022565,2]
[425800825,1781907039000,-500.0,0.00022565,2]
[425800828,1781907039000,-459.2331331,0.00022709,2]
[425800826,1781907039000,-151.0,0.00022565,2]
[425800830,1781907039000,-417.0,0.00023,2]
[425800831,1781907039000,-705.0,0.00023,2]
[425800829,1781907039000,-3719.9293581,0.00022965,2]
[425800834,1781907039000,-314.0,0.00023,2]
[425800832,1781907039000,-314.0,0.00023,2]
[425800821,1781907039000,-151.0,0.00022565,2]
[425800833,1781907039000,-226.0,0.00023,2]
[425800902,1781907040000,-2471.2236855,0.00025,2]
[425800901,1781907040000,-2241.44193966,0.00025,2]
[425800900,1781907040000,-7260.25459381,0.00025,2]
[425800895,1781907040000,-211.35637956,0.00025,2]
[425800898,1781907040000,-622.15511558,0.00025,2]
[425800899,1781907040000,-3100.01058643,0.00025,2]
[425800894,1781907040000,-498.79892273,0.0002499,2]
[425800903,1781907040000,-170.43691721,0.00025,2]
[425800892,1781907040000,-155.91,0.0002498,7]
[425800893,1781907040000,-155.86,0.0002498,7]
[425800905,1781907040000,-961036.10901717,0.00025,2]
[425800909,1781907040000,-233.86067764,0.00025,2]
[425800904,1781907040000,-4881.76327856,0.00025,2]
[425800910,1781907040000,-151.0,0.00025,2]
[425800908,1781907040000,-321.63522273,0.00025,2]
[425800907,1781907040000,-724.69640676,0.00025,2]
[425800911,1781907040000,-323.81610853,0.00025,2]
[425800912,1781907040000,-421.0485022,0.00025,2]
[425800913,1781907040000,-160.271321,0.00025,2]
[425800921,1781907040000,-381.41,0.00025,2]
[425800915,1781907040000,-151.0,0.00025,2]
[425800918,1781907040000,-381.41,0.00025,2]
[425800896,1781907040000,-1818.15233889,0.00025,2]
[425800906,1781907040000,-417.54216288,0.00025,2]
[425800897,1781907040000,-540.0,0.00025,2]
[425800863,1781907040000,-3308.61,0.00024174,2]
[425800889,1781907040000,-270.12611827,0.000249,2]
[425800916,1781907040000,-384.502733,0.00025,2]
[425800864,1781907040000,-980.44,0.00024174,2]
[425800866,1781907040000,-55412.72,0.00024174,2]
[425800865,1781907040000,-2863.82,0.00024174,2]
[425800867,1781907040000,-151.0,0.00024209,2]
[425800869,1781907040000,-2319.72410669,0.00024209,2]
[425800870,1781907040000,-154.4,0.00024324,2]
[425800872,1781907040000,-150.0,0.00024333,2]
[425800874,1781907040000,-250.0,0.00024658,4]
[425800871,1781907040000,-9241.14381888,0.00024326,7]
[425800868,1781907040000,-200.0,0.00024209,2]
[425800873,1781907040000,-1783.19,0.00024356,2]
[425800875,1781907040000,-155.6,0.00024658,2]
[425800876,1781907040000,-1000.0,0.00024658,2]
[425800877,1781907040000,-155.91,0.00024658,2]
[425800878,1781907040000,-155.86,0.00024658,2]
[425800879,1781907040000,-179.0,0.00024702,10]
[425800882,1781907040000,-200.0,0.00024757,2]
[425800884,1781907040000,-2405.55389863,0.00024757,2]
[425800886,1781907040000,-13824.19847653,0.00024826,7]
[425800880,1781907040000,-3719.9293581,0.00024738,2]
[425800885,1781907040000,-800.0,0.000248,9]
[425800887,1781907040000,-18704.6244,0.00024826,7]
[425800890,1781907040000,-1700.0,0.000249,9]
[425800891,1781907040000,-218.67099295,0.000249,2]
[425800888,1781907040000,-459.2331331,0.00024844,2]
[425800917,1781907040000,-384.502733,0.00025,2]
[425800914,1781907040000,-151.0,0.00025,2]
[425800919,1781907040000,-381.41,0.00025,2]
[425800947,1781907040000,-250.0,0.00026027,6]
[425800949,1781907040000,-2579.0,0.00026315,5]
[425800952,1781907040000,-2682.57183977,0.00026401,2]
[425800954,1781907040000,-429.409897,0.00026493,2]
[425800956,1781907040000,-413.616175,0.00026495,2]
[425800955,1781907040000,-306.810129,0.00026493,2]
[425800957,1781907040000,-321.57330401,0.00026503,7]
[425800960,1781907040000,-2600.0,0.000269,9]
[425800958,1781907040000,-3719.9293581,0.0002651,2]
[425800959,1781907040000,-270.12611826,0.00026825,2]
[425800961,1781907040000,-200.0,0.00026949,2]
[425800962,1781907040000,-2781.82699784,0.00026949,2]
[425800964,1781907040000,-500.0,0.00027002,2]
[425800963,1781907040000,-459.2331331,0.0002698,2]
[425800966,1781907040000,-1954.22160127,0.000272,2]
[425800969,1781907040000,-515.69116198,0.000273,2]
[425800968,1781907040000,-155.92,0.00027236,30]
[425800967,1781907040000,-9420.06017076,0.000272,2]
[425800970,1781907040000,-743.23945467,0.000273,2]
[425800971,1781907040000,-1505.80188386,0.000273,2]
[425800972,1781907040000,-381.41,0.0002739,2]
[425800973,1781907040000,-545.60661377,0.00027397,2]
[425800974,1781907040000,-1500.0,0.00027397,2]
[425800975,1781907040000,-519.01954751,0.00027397,2]
[425800920,1781907040000,-381.41,0.00025,2]
[425800953,1781907040000,-150.0,0.00026493,5]
[425800951,1781907040000,-200.0,0.00026401,2]
[425800965,1781907040000,-467.22448482,0.00027002,2]
[425800950,1781907040000,-28026.98738661,0.000264,2]
[425800922,1781907040000,-381.41,0.00025,2]
[425800948,1781907040000,-154.4,0.00026296,2]
[425800923,1781907040000,-384.502733,0.00025,2]
[425800926,1781907040000,-195.0,0.00025082,10]
[425800929,1781907040000,-200.0,0.00025305,2]
[425800925,1781907040000,-151.0,0.00025,2]
[425800931,1781907040000,-174.45,0.00025336,2]
[425800930,1781907040000,-2494.55939288,0.00025305,2]
[425800927,1781907040000,-155.91,0.00025302,30]
[425800924,1781907040000,-384.502733,0.00025,2]
[425800932,1781907040000,-313.18133806,0.00025417,2]
[425800934,1781907040000,-155.91,0.00025624,2]
[425800928,1781907040000,-155.86,0.00025302,30]
[425800936,1781907040000,-3308.61,0.00025786,2]
[425800935,1781907040000,-155.86,0.00025624,2]
[425800937,1781907040000,-980.44,0.00025786,2]
[425800938,1781907040000,-2863.82,0.00025786,2]
[425800940,1781907040000,-200.0,0.00025853,2]
[425800939,1781907040000,-55412.72,0.00025786,2]
[425800946,1781907040000,-220.60543849,0.00026,2]
[425800941,1781907040000,-2586.85809042,0.00025853,2]
[425800942,1781907040000,-163.2,0.00025914,2]
[425800943,1781907040000,-612.49742787,0.0002599,2]
[425800945,1781907040000,-4610.18082744,0.00026,2]
[425800944,1781907040000,-1134.7054521,0.00026,2]
[425800933,1781907040000,-435.25101817,0.00025602,2]
[425801057,1781907041000,-9420.06017076,0.000289,2]
[425801059,1781907041000,-202.0,0.000289,2]
[425801056,1781907041000,-150.0,0.00028877,5]
[425801049,1781907041000,-270.12611826,0.00028749,2]
[425801051,1781907041000,-250.0,0.00028767,10]
[425801058,1781907041000,-1505.80188386,0.000289,2]
[425801064,1781907041000,-154.0,0.00028923,30]
[425801062,1781907041000,-695.61380229,0.00028904,2]
[425801060,1781907041000,-2000.0,0.000289,2]
[425801061,1781907041000,-673.0,0.00028904,2]
[425801066,1781907041000,-417.0,0.00028923,30]
[425801047,1781907041000,-155.91,0.00028746,2]
[425801067,1781907041000,-705.0,0.00028923,30]
[425801052,1781907041000,-155.91,0.00028807,7]
[425801039,1781907041000,-150.0,0.00028599,20]
[425801050,1781907041000,-519.01954751,0.00028766,2]
[425801048,1781907041000,-155.86,0.00028747,2]
[425801055,1781907041000,-155.86,0.00028868,30]
[425801053,1781907041000,-155.86,0.00028807,7]
[425801042,1781907041000,-151.0,0.000286,7]
[425801038,1781907041000,-200.0,0.00028593,2]
[425801045,1781907041000,-155.91,0.00028685,30]
[425801040,1781907041000,-9420.06017076,0.000286,2]
[425801043,1781907041000,-155.91,0.00028624,7]
[425801036,1781907041000,-155.91,0.00028564,2]
[425801041,1781907041000,-1505.80188386,0.000286,2]
[425801037,1781907041000,-155.86,0.00028565,2]
[425801044,1781907041000,-155.86,0.00028625,7]
[425801065,1781907041000,-160.0,0.00028923,30]
[425801054,1781907041000,-155.91,0.00028868,30]
[425801063,1781907041000,-160.0,0.00028923,30]
[425801094,1781907041000,-6944.8244732,0.0002942,2]
[425801068,1781907041000,-160.0,0.00028923,30]
[425801099,1781907041000,-1229.0,0.00029699,2]
[425801097,1781907041000,-2796.6012563,0.00029503,2]
[425801096,1781907041000,-1505.80188386,0.000295,2]
[425801098,1781907041000,-150.0,0.00029534,2]
[425801095,1781907041000,-9420.06017076,0.000295,2]
[425801093,1781907041000,-500.0,0.00029295,18]
[425801091,1781907041000,-155.96,0.00029232,30]
[425801092,1781907041000,-155.95,0.00029232,30]
[425801090,1781907041000,-1505.80188386,0.000292,2]
[425801087,1781907041000,-155.91,0.00029172,7]
[425801086,1781907041000,-284.4061351,0.00029141,2]
[425801088,1781907041000,-155.86,0.00029172,7]
[425801085,1781907041000,-459.2331331,0.00029115,2]
[425801083,1781907041000,-155.91,0.00029111,2]
[425801089,1781907041000,-9420.06017076,0.000292,2]
[425801084,1781907041000,-155.86,0.00029111,2]
[425801081,1781907041000,-155.91,0.0002905,30]
[425801080,1781907041000,-507.0,0.00029,7]
[425801082,1781907041000,-155.86,0.0002905,30]
[425801079,1781907041000,-5273.63610564,0.00029,2]
[425801078,1781907041000,-155.86,0.0002899,7]
[425801077,1781907041000,-155.91,0.00028989,7]
[425801072,1781907041000,-314.0,0.00028925,30]
[425801076,1781907041000,-568.37,0.00028988,2]
[425801074,1781907041000,-155.91,0.00028928,2]
[425801073,1781907041000,-414.0,0.00028925,30]
[425801071,1781907041000,-226.0,0.00028925,30]
[425801075,1781907041000,-155.86,0.00028929,2]
[425801070,1781907041000,-314.0,0.00028923,30]
[425801069,1781907041000,-162.0,0.00028923,30]
[425801035,1781907041000,-152.0,0.00028549,3]
[425801046,1781907041000,-155.86,0.00028686,30]
[425801032,1781907041000,-743.23945467,0.000284,2]
[425800999,1781907041000,-151.0,0.00027698,7]
[425801005,1781907041000,-9420.06017076,0.000278,2]
[425800997,1781907041000,-11987.6381245,0.00027698,2]
[425800995,1781907041000,-1259.893757,0.00027698,2]
[425801004,1781907041000,-1954.22160127,0.000278,2]
[425801002,1781907041000,-500.0,0.00027799,7]
[425800993,1781907041000,-1000.0,0.00027697,2]
[425800991,1781907041000,-560.2527,0.00027658,2]
[425800989,1781907041000,-500.0,0.000275,7]
[425800990,1781907041000,-150.0,0.00027553,5]
[425800988,1781907041000,-1505.80188386,0.000275,2]
[425800986,1781907041000,-515.69116198,0.000275,2]
[425800987,1781907041000,-743.23945467,0.000275,2]
[425800982,1781907041000,-200.0,0.00027497,2]
[425800985,1781907041000,-9420.06017076,0.000275,2]
[425800983,1781907041000,-2884.75459676,0.00027497,2]
[425800984,1781907041000,-1954.22160127,0.000275,2]
[425800981,1781907041000,-250.0,0.00027397,8]
[425800980,1781907041000,-17182.9,0.00027397,10]
[425800978,1781907041000,-151.0,0.00027397,2]
[425800979,1781907041000,-20619.48,0.00027397,10]
[425800977,1781907041000,-300.0,0.00027397,2]
[425801034,1781907041000,-178.54,0.00028408,7]
[425801000,1781907041000,-158.27309752,0.00027794,2]
[425801007,1781907041000,-743.23945467,0.000278,2]
[425800976,1781907041000,-1000.0,0.00027397,20]
[425801008,1781907041000,-1505.80188386,0.000278,2]
[425801033,1781907041000,-1505.80188386,0.000284,2]